Cogmind - Beta 14 *** ADVENTURER MODE // 2025.05.05 @ 10:09:08 Player: Tisa Result: Destroyed by VS-VHT(R) with Subdweller Machine Gun Performance ------------- Evolutions (0) 0 Regions Visited (2) 400 Robots Destroyed (12) 60 Value Destroyed (367) 367 Prototype IDs (2) 40 Alien Tech Used (0) 0 Bonus (0) 0 TOTAL SCORE: 867 Bonus ------- None Cogmind --------- Core Integrity 0/250 Matter 285/300 Energy 82/100 System Corruption 0% Temperature Cool (0) Movement Core (150) Ox2 Location -10/Subcaves Parts ------- > --- POWER (1) -------- (None) > --- PROPULSION (2) --- (None) > --- UTILITY (2) ------ Small Storage Unit Subdweller Optics > --- WEAPON (2) ------- (None) > --- INVENTORY (8) ---- Ion Engine Humpback Peak State ------------ > --- POWER ------------ Light Nuclear Core > --- PROPULSION ------- Aluminum Leg Aluminum Leg > --- UTILITY ---------- Small Storage Unit Medium Matter Pod > --- WEAPON ----------- Assault Rifle Light Assault Rifle > --- INVENTORY -------- Ion Engine EM Pulse Gun Grenade Launcher [Rating: 9] Favorites ----------- Power Light Nuclear Core Engine Light Ion Engine Power Core Light Nuclear Core Propulsion Aluminum Leg Leg Aluminum Leg Flight Unit Flight Unit Utility Small Storage Unit Device Subdweller Optics Storage Small Storage Unit Weapon Light Assault Rifle Energy Gun EM Pulse Gun Ballistic Gun Light Assault Rifle Launcher Grenade Launcher Build | -11 -10 -10 ------- Run | Yrd Mat Sub Slots Evolved . | . . . Power . | . . . Propulsion . | . . . Utility . | . . . Weapon . | . . . Parts Attached 16 | 6 3 7 Power 2 | 1 1 . Engine 1 | 1 . . Core 1 | . 1 . Reactor . | . . . Propulsion 6 | 2 1 3 Treads . | . . . Leg 5 | 2 1 2 Wheel . | . . . Hover . | . . . Flight 1 | . . 1 Utility 3 | 1 1 1 Device 1 | . . 1 Storage 2 | 1 1 . Processor . | . . . Hackware . | . . . Protection . | . . . Artifact . | . . . Weapon 5 | 2 . 3 Energy Gun 2 | . . 2 Energy Cannon . | . . . Ballistic Gun 2 | 2 . . Ballistic Cannon . | . . . Launcher 1 | . . 1 Special Weapon . | . . . Impact Weapon . | . . . Slashing Weapon . | . . . Piercing Weapon . | . . . Special Melee Weapon . | . . . Unidentified Prototypes . | . . . Parts Lost 8 | . . 8 Power 1 | . . 1 Propulsion 2 | . . 2 Utility 1 | . . 1 Weapon 4 | . . 4 Highest Loss Streak 3 | . . 3 To Critical Strikes . | . . . Average Slot Usage (%) 90 | . 95 88 Engine 1 | . 3 . Core 11 | . 10 12 Leg 23 | . 28 20 Device 4 | . . 6 Storage 21 | . 23 20 Energy Gun 2 | . . 4 Ballistic Gun 20 | . 28 15 Launcher 3 | . . 6 Peak Build Rating 9 | 6 9 9 Average Rating 8 | 4 8 8 On Entrance 5 | . 6 9 Naked Turns . | . . . Heaviest Build 16 | 11 15 16 Greatest Support 20 | 20 20 20 Greatest Overweight (x) 3 | . . 3 Average Overweight (x) . | . . . Largest Inventory Capacity 8 | 8 8 8 Average Capacity 7 | 6 8 8 Most Carried 5 | 3 4 5 Average Carried 3 | 1 2 3 Final Capacity 8 | 8 8 8 Final Carried 3 | 2 3 3 Class Distribution -------------------- 100% | Mutant Dominant Class ---------------- Mutant | -10/Materials Mutant | -10/Subcaves Resources | -11 -10 -10 ----------- Run | Yrd Mat Sub Matter Collected 475 | 158 132 185 Remotely . | . . . Salvage Created 364 | . 152 212 Parts 25 | . 8 17 Haulers Intercepted . | . . . Recyclers Shooed . | . . . Parts Field Recycled . | . . . Retrieved Matter . | . . . Parts Self-Destructed 11 | . . 11 Prevented . | . . . Kills | -11 -10 -10 ------- Run | Yrd Mat Sub Combat Hostiles Destroyed 12 | . 4 8 Guns 10 | . 4 6 AOE 2 | . . 2 Classes Destroyed 4 | . 1 3 Swarmer 4 | . . 4 Grunt 4 | . 4 . Sentry 1 | . . 1 Subdweller 3 | . . 3 Best Kill Streak 3 | . 3 3 Combat Bots Only 3 | . 3 3 Max Kills in Single Turn 2 | . 1 2 Gunslinging . | . . . Exploded 1 | . . 1 Melee . | . . . Uniques/NPCs Destroyed . | . . . Combat | -11 -10 -10 -------- Run | Yrd Mat Sub Hostile Shots Fired 85 | . 34 51 Missed 26 | . 12 14 Damage Taken 934 | . 234 700 Core 256 | . 47 209 Absorbed by Shields . | . . . Ignored by Resistances 239 | . 70 169 Core Remaining (%) 100 | 100 . . Volleys Fired 43 | 4 20 19 Largest 2 | 2 2 2 Hottest 50 | 40 40 50 Shots Fired 76 | 8 40 28 Gun 71 | 8 40 23 Cannon . | . . . Launcher 5 | . . 5 Special . | . . . Kinetic 64 | 8 40 16 Thermal . | . . . Explosive 5 | . . 5 Electromagnetic 7 | . . 7 Robot Hit Streak 15 | 7 15 5 Robot Miss Streak 2 | 1 2 1 Penetration Max . | . . . Secondary Targets 2 | . 1 1 Max Gunslinging Chain 1 | . 1 1 Shots Hit Robots 59 | 7 35 17 Core Hits 24 | 1 10 13 Critical Kills 1 | . 1 . Critical Parts Destroyed . | . . . Critical Strikes 1 | . 1 . Destroy 1 | . 1 . Melee Attacks . | . . . Impact . | . . . Slashing . | . . . Piercing . | . . . Sneak Attacks . | . . . Combat Hostiles . | . . . Follow-up Attacks . | . . . Damage Inflicted 824 | 74 376 374 Guns 595 | 74 376 145 Cannons . | . . . Explosions 229 | . . 229 Melee . | . . . Ramming . | . . . Kinetic 540 | 74 376 90 Thermal . | . . . Explosive 229 | . . 229 Electromagnetic 55 | . . 55 Impact . | . . . Slashing . | . . . Piercing . | . . . Highest Corruption . | . . . Average Corruption . | . . . Corruption Purged . | . . . Corruption Blocked . | . . . Overload Shots . | . . . Overflow Damage . | . . . Projectiles . | . . . Explosions . | . . . Melee . | . . . Knockbacks . | . . . Impact . | . . . Kinetic . | . . . Secondary . | . . . Self-Inflicted Damage 20 | . . 20 Shots 1 | . . 1 Rammed . | . . . Targets Rammed . | . . . Kicked . | . . . Crushed . | . . . Highest Temperature 28 | . 28 . Average Temperature 12 | . 12 . Received Heat Transfer 285 | . 210 75 Siege Activations . | . . . Robots Corrupted . | . . . Combat Hostiles . | . . . Parts Fried . | . . . Impact Corruptions . | . . . Robots Melted . | . . . Combat Hostiles . | . . . Parts Melted . | . . . Heat Transferred . | . . . Parts Sabotaged . | . . . Parts Stolen . | . . . Parts Stripped . | . . . Power Chain Reactions . | . . . Alert | -11 -10 -10 ------- Run | Yrd Mat Sub Peak Influence 130 | . 130 . Initial . | . . . Average 46 | . 52 . Maximum Alert Level . | . . . Low Security (%) 100 | 100 100 . Level 1 . | . . . Level 2 . | . . . Level 3 . | . . . Level 4 . | . . . Level 5 . | . . . High Security . | . . . Max Security . | . . . Squads Dispatched . | . . . Investigation . | . . . Extermination . | . . . Reinforcement . | . . . Assault . | . . . Garrison . | . . . Intercept . | . . . Searches Triggered . | . . . Construction Impeded . | . . . Haulers Reinforced . | . . . Active Scanning Responses . | . . . Cargo Convoy Interrupts . | . . . Stealth | -11 -10 -10 --------- Run | Yrd Mat Sub Distress Signals . | . . . Communications Jammed . | . . . Distress Signals . | . . . Times Spotted 16 | . 6 10 Peak Tracking Total 4 | . 4 3 Tactical Retreats 1 | . 1 . Traps | -11 -10 -10 ------- Run | Yrd Mat Sub Traps Triggered 3 | . . 3 Indirectly . | . . . Trap Hack Attempts . | . . . Triggered . | . . . Disarmed . | . . . Reprogrammed . | . . . Reused . | . . . Traps Extracted . | . . . Installed . | . . . Triggered . | . . . Machines | -11 -10 -10 ---------- Run | Yrd Mat Sub Machines Disabled . | . . . Max in Single Turn . | . . . Machines Repaired . | . . . Machines Dismantled . | . . . Machines Sabotaged . | . . . Overloaded Fab Kills . | . . . Hacking | -11 -10 -10 --------- Run | Yrd Mat Sub Machines Accessed 5 | . 5 . Terminals 3 | . 3 . Fabricators . | . . . Repair Stations . | . . . Recycling Units 2 | . 2 . Scanalyzers . | . . . Garrison Access . | . . . Total Hacks 10 | . 10 . Successful 5 | . 5 . Failed 5 | . 5 . Catastrophic 1 | . 1 . Database Lockouts . | . . . Manual . | . . . Terminals 5 | . 5 . Fabricators . | . . . Repair Stations . | . . . Recycling Units 5 | . 5 . Scanalyzers . | . . . Garrison Access . | . . . Terminal Hacks 4 | . 4 . Prototype ID Bank 1 | . 1 . Recycling Unit Index 1 | . 1 . Alert Level 1 | . 1 . Hauler Manifests 1 | . 1 . Fabricator Hacks . | . . . Repair Station Hacks . | . . . Recycling Unit Hacks 1 | . 1 . Retrieve Components 1 | . 1 . Scanalyzer . | . . . Garrison Access Hacks . | . . . Unauthorized Hacks . | . . . Terminals . | . . . Fabricators . | . . . Repair Stations . | . . . Recycling Units . | . . . Scanalyzers . | . . . Garrison Access . | . . . Data Cores Recovered . | . . . Used . | . . . Hacking Detections 3 | . 3 . Full Trace Events . | . . . Feedback Events . | . . . Feedback Blocked . | . . . Robot Schematics Acquired . | . . . Robots Built . | . . . Authchips . | . . . Time . | . . . Total Robot Build Rating . | . . . Part Schematics Acquired . | . . . Parts Built . | . . . Authchips . | . . . Time . | . . . Total Part Build Rating . | . . . Parts Repaired . | . . . Time . | . . . Parts Recycled . | . . . Recycled Matter . | . . . Retrieved Matter . | . . . Retrieved Components 2 | . 2 . Parts Scanalyzed . | . . . Part Schematics Acquired . | . . . Parts Damaged . | . . . Bothacking | -11 -10 -10 ------------ Run | Yrd Mat Sub Used RIF Installer . | . . . Robots Hacked . | . . . Non-combat . | . . . Combat . | . . . Robot Hacks Applied . | . . . Relay Couplers Released . | . . . Fabnet Peak Effective % . | . . . Robots Rewired . | . . . Allies Hacked . | . . . Hacks Repelled . | . . . Allies | -11 -10 -10 -------- Run | Yrd Mat Sub Total Allies . | . . . Largest Group . | . . . Highest-Rated Group . | . . . Highest-Rated Ally . | . . . Total Orders . | . . . Ally Attacks . | . . . Total Damage . | . . . Kills . | . . . Allies Corrupted . | . . . Allies Melted . | . . . Intel | -11 -10 -10 ------- Run | Yrd Mat Sub Robot Analysis Total . | . . . Derelict Logs Recovered 2 | . . 2 Drone Launches . | . . . Drone Recoveries . | . . . Exploration | -11 -10 -10 ------------- Run | Yrd Mat Sub Turns Passed 1600 | 73 596 931 Spaces Moved 852 | 48 210 594 Core 16 | 13 . 3 Treads . | . . . Legs 834 | 35 210 589 Wheels . | . . . Hover . | . . . Flight 2 | . . 2 Fastest Speed 50 | 50 120 120 Average Speed 135 | 101 120 144 Slowest Speed 280 | 120 120 280 Overloaded Moves . | . . . Propulsion Burnouts . | . . . Robots Hopped . | . . . Cave-ins Triggered . | . . . Exploration Rate (%) 26 | 4 37 39 Regions Visited 2 Branch Regions 1 Pre-discovered Areas 2 | . . 2 Known Exits Taken . | . . . Unknown Exits Taken 2 | 1 1 . Scrap Searched . | . . . Spaces Dug 8 | . . 8 Terrain Destroyed 29 | . . 29 Melee . | . . . Projectile . | . . . AOE 29 | . . 29 Terrain Rammed . | . . . Walls Destroyed . | . . . Machines Disabled . | . . . Actions | -11 -10 -10 --------- Run | Yrd Mat Sub Total 1221 | 65 518 638 Wait 290 | . 280 10 Move 850 | 47 209 594 Hop . | . . . Pick Up 17 | 8 4 5 Fast Attach . | . . . Attach 12 | 6 1 5 Detach . | . . . Swap 4 | . 2 2 Drop 5 | . 2 3 Fire 43 | 4 20 19 Melee . | . . . Ram . | . . . Kick . | . . . Crush . | . . . Escape Stasis . | . . . Rewire . | . . . Trap . | . . . Miscellaneous . | . . . Route ------- -11/Scrapyard -10/Materials (discovered 2 exits: [*Min] / [*Sub]) -10/Subcaves (discovered 1 exit: [*Mat]) History --------- Turn | Location | Event 4 | -11/Scrapyard | Discovered new exit (range 15) 74 | -11/Scrapyard | Entered Materials 248 | -10/Materials | Discovered new exit (range 6) 316 | -10/Materials | Build established: Mutant 656 | -10/Materials | Discovered new exit (range 6) 670 | -10/Materials | Entered Subcaves 744 | -10/Subcaves | Learned location of Zion (-7) 744 | -10/Subcaves | Met a Zionite searching for "candidates" 891 | -10/Subcaves | Discovered new exit (range 14) 1113 | -10/Subcaves | Core integrity fell below 50% 1115 | -10/Subcaves | Ambushed by Subdweller buried in earth 1228 | -10/Subcaves | Learned Materials stockpile data 1540 | -10/Subcaves | Lost 3 parts (1p2w) 1580 | -10/Subcaves | Core integrity fell below 20% 1601 | -10/Subcaves | Destroyed by VS-VHT(R) with Subdweller Machine Gun Last Messages --------------- Subatomizers dissect the Sub. Power Source. Subatomizers dissect the Sub. Power Source, destroying it. Subatomizers dissect the Disposable Heat Sink. The unstable cave ceiling collapses. Lgt. Nuclear Core destroyed. Grenade Launcher destroyed. S-10 Pest destroyed. Lgt. Assault Rifle destroyed. Y-45 Defender destroyed. Corrupted Lgt. Treads fries itself beyond repair. Subatomizers dissect the Lgt. Armor Plating. Acquired 18 matter. Lgt. Armor Plating fries itself beyond repair. Acquired 60 matter. VS-VHT(R) IFF system glitched. EM Pulse Gun destroyed. Aluminum Leg destroyed. Map ----- +----------------------------------------------------+ | ??????????????????????????????????????????? | | ??????????????????????????????????????????? | | ??????????????????????????????????????????? | | ??????????????????????????????????????????? | | ??????????????????????????????????????????? | | ??????????????????????????????????????????? | | ??????????????????????????????????????????? | | ??????????????????????????????????????????? | | ??????????????????????????????????????????? | | ??????????????????????????????????????????? | | ?????????????????????####?????????????????? | | ?????????????????????? ####??????????????? | | ???????##????????????? #??????????????? | | ?????## ?????????????? #??????????????? | | ???## #????##???###?? #??????????????? | | ??## #??## #??## ##?# #??????????????? | | ??# #### #??# ### #????????????????? | | ??# #?# #???## #?????????????????? | | ?## #### ##### #?????????????????? | | ## # # #?????????????????? | | # ##????????????????? | | ####?????????????? | | ## ### #?????????????? | | ######## ####### ##?????????????? | | ## ##?????# ??????## #??????????????? | | ### ##????# ??????##@ #??????????????? | | ##???##??????# #??????????????? | | #???????????## ##??????????????? | | ##??????????# #??????????????? | | # ## ##?????????## ##??????????????? | | # ### #????????## #???????????????? | | #####?# ####??? ### #???????????????? | | ?????## ## #?# ##??????????????? | | ###### ### #??????????????? | | ####### ### #??????????????? | | ##?### ## #?## ##??????????????? | | ### #?# #?# #??????????????? | | ## #??# ## #??????????????? | | ### #???# #### #??????????????? | | ??## ##???? #?# ##??????????????? | | ???##########?????? #?##R#???????????????? | | #?## #???????????# # # ##??????????????? | | ### #????????????# "#??????????????? | | #####????????# ##??????????????? | | ##??????# ## ##???????????????? | | ######## ?###????????????????? | | ## # "" ??????????????????????? | | """ ???????????????????????? | | # "####????????????????????? | | ## ## # ## """"????????????????????? | +----------------------------------------------------+ Best States ------------- Heat Dissipation 25 Energy Generation 14 Energy Capacity 160 Matter Stores 285 Matter Capacity 400 Sight Range 21 Terrain Scan Density 10 Resistance: KI 20 Resistance: TH 20 Resistance: EX 20 Resistance: EM 20 Resistance: I 20 Resistance: S 20 Resistance: P 20 Evasion (%) 55 Offensive Hacking 10 Item Schematics ----------------- None Robot Schematics ------------------ None Fabricated ------------ Nothing Alien Tech Used ----------------- None Achievements -------------- None Challenges ------------ None Game ------ Seed GyrokineticDeuteriumThruster Manual? 0 Play Time 00:10:12 Cumulative 4.2 hours Start 2025.05.05 @ 10:00:38 End 2025.05.05 @ 10:09:08 Sessions 1 Manual Loads 0 Difficulty Adventurer Special Mode None Game No. 5 Rogue 0 Adventurer 5 Explorer 0 Win Type - Total 0 Types 0/0/0/0/0/0/0/0/0 Lore% 4 Gallery% 6 Achievement% 9 Wizard Run 0 Options --------- Layout 1 ASCII 0 Keyboard 0 Movement Mouse Keybinds 0 Fullscreen 1 Font 24/Smallcaps Map View 50x35 Zoom Use 0% Tactical HUD 0 Map Filters NONE Filters NONE Steam 1 RUN: f0a5e325-bad6-4abc-b889-b7a37504882c